[Event "Tournoi fermé pour norme de MI de Créon 2025"]
[Site "CREON, France"]
[Date "2025.08.03"]
[Round "9.5"]
[White "Llari, Marc"]
[Black "Lamaze, Simon"]
[Result "1/2-1/2"]
[TimeControl "1h30/40 - 30' + [30'']"]
[WhiteElo "2341"]
[BlackElo "2458"]

1. Nf3 {[%clk 01:30:59]} {[%emt 00:01:43]} Nf6 {[%clk 01:30:45]} {[%emt
00:00:16]} 2. c4 {[%clk 01:31:24]} {[%emt 00:00:04]} g6 {[%clk 01:31:00]}
{[%emt 00:00:16]} 3. Nc3 {[%clk 01:31:48]} {[%emt 00:00:06]} Bg7 {[%clk
01:31:27]} {[%emt 00:00:02]} 4. e4 {[%clk 01:32:11]} {[%emt 00:00:07]} O-O
{[%clk 01:31:54]} {[%emt 00:00:03]} 5. d4 {[%clk 01:32:36]} {[%emt 00:00:05]}
d6 {[%clk 01:32:22]} {[%emt 00:00:03]} 6. h3 {[%clk 01:33:01]} {[%emt
00:00:03]} e5 {[%clk 01:32:50]} {[%emt 00:00:04]} 7. d5 {[%clk 01:33:26]}
{[%emt 00:00:04]} a5 {[%clk 01:33:18]} {[%emt 00:00:02]} 8. Be3 {[%clk
01:33:50]} {[%emt 00:00:07]} Na6 {[%clk 01:33:17]} {[%emt 00:00:30]} 9. g4
{[%clk 01:34:12]} {[%emt 00:00:08]} Nd7 {[%clk 01:33:45]} {[%emt 00:00:03]} 10.
a3 {[%clk 01:30:01]} {[%emt 00:04:40]} Nb6 {[%clk 01:30:42]} {[%emt 00:03:33]}
11. Be2 {[%clk 01:24:07]} {[%emt 00:06:24]} Bd7 {[%clk 01:28:26]} {[%emt
00:02:47]} 12. Rg1 {[%clk 01:20:40]} {[%emt 00:03:55]} c6 {[%clk 01:17:31]}
{[%emt 00:11:26]} 13. h4 {[%clk 01:17:46]} {[%emt 00:03:23]} Rc8 {[%clk
01:11:30]} {[%emt 00:06:33]} 14. Qb3 {[%clk 01:15:17]} {[%emt 00:02:59]} Nc5
{[%clk 01:11:14]} {[%emt 00:00:46]} 15. Bxc5 {[%clk 01:14:59]} {[%emt
00:00:48]} dxc5 {[%clk 01:10:58]} {[%emt 00:00:46]} 16. O-O-O {[%clk 01:15:23]}
{[%emt 00:00:05]} Ra8 {[%clk 01:00:12]} {[%emt 00:11:16]} 17. g5 {[%clk
01:05:51]} {[%emt 00:10:01]} cxd5 {[%clk 00:54:12]} {[%emt 00:06:32]} 18. exd5
{[%clk 01:04:57]} {[%emt 00:01:23]} e4 {[%clk 00:53:55]} {[%emt 00:00:47]} 19.
Nd2 {[%clk 01:04:35]} {[%emt 00:00:51]} a4 {[%clk 00:52:00]} {[%emt 00:02:26]}
20. Qc2 {[%clk 01:02:21]} {[%emt 00:02:38]} Nc8 {[%clk 00:49:31]} {[%emt
00:03:05]} 21. Bg4 {[%clk 00:57:54]} {[%emt 00:04:55]} Bxg4 {[%clk 00:45:46]}
{[%emt 00:04:17]} 22. Rxg4 {[%clk 00:56:17]} {[%emt 00:02:07]} Qd7 {[%clk
00:37:09]} {[%emt 00:09:07]} 23. Rf4 {[%clk 00:47:05]} {[%emt 00:09:35]} f5
{[%clk 00:34:27]} {[%emt 00:03:19]} 24. gxf6 {[%clk 00:46:29]} {[%emt
00:01:06]} Bh6 {[%clk 00:34:47]} {[%emt 00:00:10]} 25. Rxe4 {[%clk 00:46:03]}
{[%emt 00:00:55]} Rxf6 {[%clk 00:33:23]} {[%emt 00:01:55]} 26. Re2 {[%clk
00:44:39]} {[%emt 00:01:52]} Nd6 {[%clk 00:33:41]} {[%emt 00:00:13]} 27. Kb1
{[%clk 00:41:59]} {[%emt 00:03:10]} Bxd2 {[%clk 00:30:23]} {[%emt 00:03:49]} 28.
Qxd2 {[%clk 00:40:08]} {[%emt 00:02:21]} Raf8 {[%clk 00:25:27]} {[%emt
00:05:26]} 29. Qc2 {[%clk 00:31:49]} {[%emt 00:08:48]} Rf4 {[%clk 00:18:06]}
{[%emt 00:07:51]} 30. Qxa4 {[%clk 00:27:51]} {[%emt 00:04:29]} Qf5+ {[%clk
00:18:34]} {[%emt 00:00:02]} 31. Qc2 {[%clk 00:28:13]} {[%emt 00:00:08]} Qxc2+
{[%clk 00:17:21]} {[%emt 00:01:43]} 32. Kxc2 {[%clk 00:28:36]} {[%emt
00:00:07]} Rxc4 {[%clk 00:17:43]} {[%emt 00:00:08]} 33. Re6 {[%clk 00:26:33]}
{[%emt 00:02:31]} Nf5 {[%clk 00:12:38]} {[%emt 00:05:36]} 34. Rb6 {[%clk
00:24:28]} {[%emt 00:02:35]} Rxh4 {[%clk 00:10:38]} {[%emt 00:02:32]} 35. Rxb7
{[%clk 00:23:33]} {[%emt 00:01:24]} Nd6 {[%clk 00:11:03]} {[%emt 00:00:05]}
1/2-1/2

[Event "Tournoi fermé pour norme de MI de Créon 2025"]
[Site "CREON, France"]
[Date "2025.08.03"]
[Round "9.2"]
[White "Le Hetet, Nicolas"]
[Black "Mohammad Nubairshah"]
[Result "1/2-1/2"]
[TimeControl "1h30/40 - 30' + [30'']"]
[WhiteElo "2288"]
[BlackElo "2378"]

1. e4 {[%clk 01:30:58]} {[%emt 00:08:19]} c5 {[%clk 01:30:53]} {[%emt
00:00:07]} 2. Nc3 {[%clk 01:31:04]} {[%emt 00:00:24]} e6 {[%clk 01:31:18]}
{[%emt 00:00:04]} 3. Nf3 {[%clk 01:30:54]} {[%emt 00:00:40]} Nc6 {[%clk
01:31:32]} {[%emt 00:00:17]} 4. d4 {[%clk 01:31:17]} {[%emt 00:00:07]} cxd4
{[%clk 01:31:42]} {[%emt 00:00:19]} 5. Nxd4 {[%clk 01:31:39]} {[%emt 00:00:08]}
Qc7 {[%clk 01:32:11]} {[%emt 00:00:02]} 6. Be3 {[%clk 01:31:23]} {[%emt
00:00:46]} a6 {[%clk 01:32:38]} {[%emt 00:00:03]} 7. Qf3 {[%clk 01:31:27]}
{[%emt 00:00:26]} Nf6 {[%clk 01:32:34]} {[%emt 00:00:34]} 8. O-O-O {[%clk
01:31:24]} {[%emt 00:00:33]} Ne5 {[%clk 01:32:44]} {[%emt 00:00:20]} 9. Qg3
{[%clk 01:30:29]} {[%emt 00:01:26]} b5 {[%clk 01:32:47]} {[%emt 00:00:27]} 10.
f4 {[%clk 01:28:18]} {[%emt 00:02:41]} Neg4 {[%clk 01:32:47]} {[%emt 00:00:29]}
11. e5 {[%clk 01:26:45]} {[%emt 00:02:03]} Nxe3 {[%clk 01:31:33]} {[%emt
00:01:44]} 12. Qxe3 {[%clk 01:23:44]} {[%emt 00:03:31]} b4 {[%clk 01:31:57]}
{[%emt 00:00:06]} 13. Ne4 {[%clk 01:23:35]} {[%emt 00:00:38]} Nxe4 {[%clk
01:30:30]} {[%emt 00:01:57]} 14. Qxe4 {[%emt 00:00:10]} Bb7 {[%clk 01:30:53]}
{[%emt 00:00:03]} 15. Qe1 {[%clk 01:22:39]} {[%emt 00:01:50]} Bc5 {[%clk
01:24:12]} {[%emt 00:07:11]} 16. Nf3 {[%clk 01:21:16]} {[%emt 00:01:52]} Rc8
{[%clk 01:17:25]} {[%emt 00:07:17]} 17. Bd3 {[%clk 01:19:35]} {[%emt 00:02:11]}
Bd5 {[%clk 01:14:15]} {[%emt 00:03:41]} 18. Kb1 {[%clk 01:11:25]} {[%emt
00:08:40]} Qa5 {[%clk 01:12:12]} {[%emt 00:02:33]} 19. b3 {[%clk 01:07:35]}
{[%emt 00:04:20]} Bxf3 {[%clk 00:52:36]} {[%emt 00:20:07]} 20. gxf3 {[%clk
01:07:07]} {[%emt 00:00:58]} Bd4 {[%clk 00:34:21]} {[%emt 00:18:44]} 21. a4
{[%clk 01:07:11]} {[%emt 00:00:25]} Rc3 {[%emt 00:24:31]} 22. Bxa6 {[%emt
00:00:07]} Qd5 {[%emt 00:00:10]} 23. Bd3 {[%emt 00:00:02]} Rc8 {[%emt
00:00:03]} 24. Bc4 {[%emt 00:00:27]} Qa5 {[%emt 00:02:51]} 25. Bd3 {[%emt
00:00:01]} 1/2-1/2

[Event "Tournoi fermé pour norme de MI de Créon 2025"]
[Site "CREON, France"]
[Date "2025.08.03"]
[Round "9.3"]
[White "Villegas, Pierre"]
[Black "Lacan-Rus, David"]
[Result "1/2-1/2"]
[TimeControl "1h30/40 - 30' + [30'']"]
[WhiteElo "2291"]
[BlackElo "2369"]

1. d4 {[%clk 01:30:56]} {[%emt 00:00:03]} Nf6 {[%clk 01:30:52]} {[%emt
00:00:08]} 2. c4 {[%clk 01:31:16]} {[%emt 00:00:11]} g6 {[%clk 01:31:15]}
{[%emt 00:00:07]} 3. Nc3 {[%clk 01:29:00]} {[%emt 00:02:46]} d5 {[%clk
01:31:34]} {[%emt 00:00:12]} 4. Bf4 {[%clk 01:29:20]} {[%emt 00:00:10]} Bg7
{[%clk 01:31:00]} {[%emt 00:01:04]} 5. e3 {[%clk 01:29:41]} {[%emt 00:00:10]}
O-O {[%clk 01:31:03]} {[%emt 00:00:26]} 6. cxd5 {[%clk 01:29:51]} {[%emt
00:00:20]} Nxd5 {[%clk 01:31:27]} {[%emt 00:00:06]} 7. Nxd5 {[%clk 01:30:19]}
{[%emt 00:00:03]} Qxd5 {[%clk 01:31:52]} {[%emt 00:00:05]} 8. Bxc7 {[%clk
01:30:44]} {[%emt 00:00:04]} Na6 {[%clk 01:32:18]} {[%emt 00:00:04]} 9. Bxa6
{[%clk 01:30:56]} {[%emt 00:00:18]} Qxg2 {[%clk 01:32:46]} {[%emt 00:00:02]} 10.
Qf3 {[%clk 01:31:20]} {[%emt 00:00:05]} Qxf3 {[%clk 01:33:12]} {[%emt
00:00:04]} 11. Nxf3 {[%clk 01:31:47]} {[%emt 00:00:03]} bxa6 {[%clk 01:33:37]}
{[%emt 00:00:06]} 12. Rc1 {[%clk 01:32:08]} {[%emt 00:00:09]} f6 {[%clk
01:32:24]} {[%emt 00:01:43]} 13. Rg1 {[%clk 01:31:39]} {[%emt 00:00:58]} Rf7
{[%clk 01:31:36]} {[%emt 00:01:18]} 14. Ke2 {[%clk 01:29:35]} {[%emt 00:02:35]}
Bd7 {[%clk 01:29:17]} {[%emt 00:02:48]} 15. b3 {[%clk 00:55:52]} {[%emt
00:34:13]} e5 {[%clk 01:25:59]} {[%emt 00:03:48]} 16. a4 {[%clk 00:45:22]}
{[%emt 00:11:00]} exd4 {[%clk 01:15:41]} {[%emt 00:10:48]} 17. Nxd4 {[%clk
00:45:30]} {[%emt 00:00:22]} Re8 {[%clk 01:16:02]} {[%emt 00:00:09]} 18. Rc4
{[%clk 00:36:07]} {[%emt 00:09:53]} f5 {[%clk 01:12:14]} {[%emt 00:04:19]} 19.
Kd3 {[%clk 00:34:29]} {[%emt 00:02:08]} Bxd4 {[%clk 01:05:20]} {[%emt
00:07:23]} 20. Rxd4 {[%clk 00:32:46]} {[%emt 00:02:13]} Bxa4 {[%clk 01:04:23]}
{[%emt 00:01:29]} 21. Rxa4 {[%clk 00:30:57]} {[%emt 00:02:18]} Rxc7 {[%clk
01:04:47]} {[%emt 00:00:06]} 22. Rxa6 {[%clk 00:28:11]} {[%emt 00:03:16]} Rd8+
{[%clk 01:03:49]} {[%emt 00:01:27]} 23. Ke2 {[%clk 00:28:35]} {[%emt 00:00:05]}
Rb8 {[%clk 01:04:15]} {[%emt 00:00:04]} 24. Rga1 {[%clk 00:26:42]} {[%emt
00:02:23]} Rxb3 {[%clk 01:04:13]} {[%emt 00:00:32]} 25. Rxa7 {[%clk 00:26:55]}
{[%emt 00:00:18]} Rbb7 {[%clk 01:04:13]} {[%emt 00:00:29]} 26. Rxb7 {[%clk
00:27:13]} {[%emt 00:00:12]} 1/2-1/2

[Event "Tournoi fermé pour norme de MI de Créon 2025"]
[Site "CREON, France"]
[Date "2025.08.03"]
[Round "9.1"]
[White "Kocharin, Timur"]
[Black "Malka, Samuel"]
[Result "1/2-1/2"]
[TimeControl "1h30/40 - 30' + [30'']"]
[WhiteElo "2302"]
[BlackElo "2268"]

1. e4 {[%clk 01:28:19]} {[%emt 00:02:40]} e5 {[%clk 01:30:56]} {[%emt
00:00:05]} 2. Nf3 {[%clk 01:28:26]} {[%emt 00:00:23]} Nc6 {[%clk 01:31:24]}
{[%emt 00:00:03]} 3. Bb5 {[%clk 01:28:48]} {[%emt 00:00:06]} a6 {[%clk
01:31:53]} {[%emt 00:00:03]} 4. Ba4 {[%clk 01:29:14]} {[%emt 00:00:04]} Nf6
{[%clk 01:32:21]} {[%emt 00:00:03]} 5. O-O {[%clk 01:29:37]} {[%emt 00:00:06]}
Be7 {[%clk 01:32:49]} {[%emt 00:00:03]} 6. d3 {[%clk 01:28:35]} {[%emt
00:01:31]} b5 {[%clk 01:32:34]} {[%emt 00:00:45]} 7. Bb3 {[%clk 01:28:58]}
{[%emt 00:00:07]} d6 {[%clk 01:33:01]} {[%emt 00:00:03]} 8. a3 {[%clk
01:29:21]} {[%emt 00:00:07]} a5 {[%clk 01:33:31]} {[%emt 00:00:01]} 9. c4
{[%clk 01:29:43]} {[%emt 00:00:08]} bxc4 {[%emt 00:00:05]} 10. Bxc4 {[%clk
01:30:06]} {[%emt 00:00:06]} O-O {[%clk 01:33:50]} {[%emt 00:00:36]} 11. Nc3
{[%clk 01:26:15]} {[%emt 00:04:21]} Bg4 {[%clk 01:34:16]} {[%emt 00:00:04]} 12.
h3 {[%clk 01:26:39]} {[%emt 00:00:06]} Bxf3 {[%clk 01:34:43]} {[%emt 00:00:04]}
13. Qxf3 {[%clk 01:27:02]} {[%emt 00:00:06]} Nd4 {[%clk 01:35:12]} {[%emt
00:00:03]} 14. Qd1 {[%clk 01:26:27]} {[%emt 00:01:04]} c6 {[%clk 01:31:18]}
{[%emt 00:04:24]} 15. Ba2 {[%clk 01:25:15]} {[%emt 00:01:42]} Nd7 {[%clk
01:29:44]} {[%emt 00:02:05]} 16. Be3 {[%clk 01:16:01]} {[%emt 00:09:44]} Bf6
{[%clk 01:23:52]} {[%emt 00:06:21]} 17. g3 {[%clk 01:03:05]} {[%emt 00:13:25]}
g6 {[%clk 01:19:38]} {[%emt 00:04:45]} 18. Ne2 {[%clk 01:01:37]} {[%emt
00:01:58]} Nxe2+ {[%clk 01:18:17]} {[%emt 00:01:51]} 19. Qxe2 {[%clk 01:02:00]}
{[%emt 00:00:06]} c5 {[%clk 01:18:03]} {[%emt 00:00:44]} 20. Qd2 {[%clk
00:59:51]} {[%emt 00:02:40]} Qe7 {[%clk 01:12:03]} {[%emt 00:06:30]} 21. Rac1
{[%clk 00:59:14]} {[%emt 00:01:07]} Rfb8 {[%clk 01:08:38]} {[%emt 00:03:54]} 22.
Rc2 {[%clk 00:57:43]} {[%emt 00:02:01]} Nf8 {[%clk 01:03:50]} {[%emt 00:05:18]}
23. h4 {[%clk 00:56:19]} {[%emt 00:01:54]} Ne6 {[%clk 00:59:09]} {[%emt
00:05:11]} 24. Kg2 {[%clk 00:56:09]} {[%emt 00:00:39]} Qd7 {[%clk 00:57:26]}
{[%emt 00:02:14]} 25. Bc4 {[%clk 00:54:30]} {[%emt 00:02:10]} h5 {[%clk
00:48:31]} {[%emt 00:09:25]} 26. f3 {[%clk 00:51:46]} {[%emt 00:03:13]} Kg7
{[%clk 00:46:11]} {[%emt 00:02:50]} 27. Qf2 {[%clk 00:50:29]} {[%emt 00:01:47]}
Qe7 {[%clk 00:43:51]} {[%emt 00:02:49]} 28. Rh1 {[%clk 00:48:20]} {[%emt
00:02:39]} Kh7 {[%clk 00:42:50]} {[%emt 00:01:31]} 29. Qd2 {[%clk 00:42:50]}
{[%emt 00:06:01]} Bg7 {[%clk 00:41:59]} {[%emt 00:01:21]} 30. Rb1 {[%clk
00:37:31]} {[%emt 00:05:49]} a4 {[%clk 00:37:49]} {[%emt 00:04:40]} 31. Qc1
{[%clk 00:34:39]} {[%emt 00:03:22]} f5 {[%clk 00:33:12]} {[%emt 00:05:06]} 32.
b4 {[%clk 00:28:48]} {[%emt 00:06:23]} axb3 {[%clk 00:31:57]} {[%emt 00:01:45]}
33. Rxb3 {[%clk 00:29:00]} {[%emt 00:00:18]} Rxb3 {[%clk 00:31:28]} {[%emt
00:00:59]} 34. Bxb3 {[%clk 00:29:23]} {[%emt 00:00:07]} f4 {[%clk 00:28:06]}
{[%emt 00:03:52]} 35. Bxe6 {[%clk 00:28:38]} {[%emt 00:01:16]} Qxe6 {[%clk
00:25:27]} {[%emt 00:03:09]} 36. gxf4 {[%clk 00:27:26]} exf4 {[%clk 00:25:27]}
37. Bxf4 {[%clk 00:27:26]} Qb3 {[%clk 00:03:31]} {[%emt 00:24:48]} 38. Bxd6
Qxd3 {[%clk 00:03:39]} 39. Qd2 {[%clk 00:26:36]} {[%emt 00:01:32]} Qxa3 {[%clk
00:03:18]} {[%emt 00:00:52]} 40. Bxc5 {[%clk 00:26:46]} {[%emt 00:00:20]} Qb3
{[%clk 00:02:47]} {[%emt 00:01:00]} 41. Bf2 {[%clk 00:18:36]} {[%emt 00:08:41]}
Rf8 {[%clk 00:21:28]} {[%emt 00:11:49]} 42. Be3 {[%clk 00:47:51]} {[%emt
00:01:15]} Rd8 {[%clk 00:21:03]} {[%emt 00:00:54]} 43. Qxd8 {[%clk 00:45:56]}
{[%emt 00:02:25]} Qxc2+ {[%clk 00:21:31]} {[%emt 00:00:03]} 44. Bf2 {[%clk
00:45:43]} {[%emt 00:00:42]} Qb2 {[%clk 00:19:14]} {[%emt 00:02:48]} 45. Qd5
{[%clk 00:45:52]} {[%emt 00:00:20]} Qf6 {[%clk 00:18:12]} {[%emt 00:01:31]} 46.
Bg3 {[%clk 00:43:35]} {[%emt 00:02:47]} Qb2+ {[%clk 00:17:11]} {[%emt
00:01:32]} 47. Bf2 {[%clk 00:43:44]} {[%emt 00:00:21]} Qf6 {[%clk 00:17:19]}
{[%emt 00:00:22]} 48. Qc5 {[%clk 00:42:23]} {[%emt 00:01:50]} Qb2 {[%clk
00:14:49]} {[%emt 00:03:01]} 49. Qe3 {[%clk 00:42:12]} {[%emt 00:00:41]} Qe5
{[%clk 00:13:38]} {[%emt 00:01:39]} 50. f4 {[%clk 00:40:21]} {[%emt 00:02:23]}
Qe6 {[%clk 00:13:48]} {[%emt 00:00:20]} 51. Qf3 {[%clk 00:40:47]} {[%emt
00:00:04]} Qd6 {[%clk 00:11:40]} {[%emt 00:02:36]} 52. Kh3 {[%clk 00:40:12]}
{[%emt 00:01:06]} Qc6 {[%clk 00:10:52]} {[%emt 00:01:17]} 53. Bg3 {[%clk
00:39:20]} {[%emt 00:01:22]} Qc3 {[%clk 00:10:17]} {[%emt 00:01:05]} 54. Qe2
{[%clk 00:39:21]} {[%emt 00:00:29]} Qb2 {[%clk 00:09:49]} {[%emt 00:00:58]} 55.
Qd3 {[%clk 00:39:39]} {[%emt 00:00:12]} Qd4 {[%clk 00:08:16]} {[%emt 00:02:03]}
56. Qe2 {[%clk 00:39:32]} {[%emt 00:00:37]} Qb2 {[%clk 00:08:40]} {[%emt
00:00:05]} 57. Qf3 {[%clk 00:39:38]} {[%emt 00:00:24]} Qc3 {[%clk 00:08:36]}
{[%emt 00:00:34]} 58. Qg2 {[%clk 00:35:14]} {[%emt 00:04:54]} Qb2 {[%clk
00:08:12]} {[%emt 00:00:54]} 59. Bf2 {[%clk 00:34:12]} {[%emt 00:01:32]} Qc3+
{[%clk 00:06:15]} {[%emt 00:02:27]} 60. Kh2 {[%clk 00:34:24]} {[%emt 00:00:18]}
Qd2 {[%clk 00:06:09]} {[%emt 00:00:36]} 61. Qf3 {[%clk 00:34:23]} {[%emt
00:00:31]} Qc3 {[%clk 00:05:15]} {[%emt 00:01:24]} 62. Qd1 {[%clk 00:34:21]}
{[%emt 00:00:31]} Qb2 {[%clk 00:05:05]} {[%emt 00:00:40]} 63. Kg2 {[%clk
00:34:38]} {[%emt 00:00:13]} Qf6 {[%clk 00:04:20]} {[%emt 00:01:16]} 64. Qf3
{[%clk 00:34:36]} {[%emt 00:00:33]} Qc3 {[%clk 00:04:43]} {[%emt 00:00:06]} 65.
Be3 {[%clk 00:34:51]} {[%emt 00:00:14]} Bd4 {[%clk 00:04:16]} {[%emt 00:00:57]}
66. Bxd4 {[%clk 00:34:20]} {[%emt 00:01:01]} Qxd4 {[%clk 00:04:45]} {[%emt
00:00:03]} 67. Kg3 {[%clk 00:34:14]} {[%emt 00:00:36]} Qg1+ {[%clk 00:04:39]}
{[%emt 00:00:36]} 68. Kh3 {[%clk 00:34:42]} {[%emt 00:00:01]} Qd4 {[%clk
00:03:58]} {[%emt 00:01:11]} 69. f5 {[%clk 00:33:21]} {[%emt 00:01:52]} Qd7
{[%clk 00:03:23]} {[%emt 00:01:04]} 70. Kg2 {[%clk 00:33:26]} {[%emt 00:00:24]}
Qd2+ {[%clk 00:03:21]} {[%emt 00:00:32]} 71. Qf2 {[%clk 00:33:53]} {[%emt
00:00:03]} Qb4 {[%clk 00:02:54]} {[%emt 00:00:57]} 72. fxg6+ {[%clk 00:31:23]}
{[%emt 00:03:00]} Kxg6 {[%clk 00:03:20]} {[%emt 00:00:04]} 73. Qf5+ {[%clk
00:31:45]} {[%emt 00:00:07]} Kg7 {[%clk 00:03:38]} {[%emt 00:00:13]} 74. Qe5+
{[%clk 00:32:10]} {[%emt 00:00:05]} Kg8 {[%clk 00:02:26]} {[%emt 00:01:42]} 75.
Qg5+ {[%clk 00:31:44]} {[%emt 00:00:55]} Kf8 {[%clk 00:02:44]} {[%emt
00:00:11]} 76. Qf6+ {[%clk 00:31:20]} {[%emt 00:00:54]} Ke8 {[%clk 00:02:41]}
{[%emt 00:00:30]} 77. Qe5+ {[%clk 00:30:54]} {[%emt 00:01:00]} Kf8 {[%clk
00:02:51]} {[%emt 00:00:19]} 78. Kf3 {[%clk 00:30:52]} {[%emt 00:00:34]} Qe1
{[%clk 00:02:23]} {[%emt 00:00:59]} 79. Qc5+ {[%clk 00:29:37]} {[%emt
00:01:44]} Kg8 {[%clk 00:02:11]} {[%emt 00:00:42]} 80. Qg5+ {[%clk 00:25:45]}
{[%emt 00:04:22]} Kf8 {[%clk 00:02:41]} 81. Qf6+ {[%clk 00:25:43]} {[%emt
00:00:33]} Ke8 {[%clk 00:02:30]} {[%emt 00:00:39]} 82. Qh8+ {[%clk 00:20:02]}
{[%emt 00:06:12]} Ke7 {[%clk 00:02:28]} {[%emt 00:00:30]} 83. Qg7+ {[%clk
00:20:23]} {[%emt 00:00:10]} Ke6 {[%clk 00:02:13]} {[%emt 00:00:42]} 84. Qg6+
{[%clk 00:20:17]} {[%emt 00:00:39]} Ke7 {[%clk 00:02:29]} {[%emt 00:00:08]} 85.
Qg5+ {[%clk 00:19:47]} {[%emt 00:01:06]} Ke6 {[%clk 00:01:22]} {[%emt
00:01:38]} 86. Qd5+ {[%clk 00:18:02]} {[%emt 00:02:15]} Ke7 {[%clk 00:01:39]}
{[%emt 00:00:10]} 87. Qe5+ {[%clk 00:18:18]} {[%emt 00:00:17]} Kf8 {[%clk
00:01:45]} {[%emt 00:00:24]} 88. Qf6+ {[%clk 00:18:24]} {[%emt 00:00:23]} Ke8
{[%clk 00:01:56]} {[%emt 00:00:20]} 89. Kf4 {[%clk 00:18:46]} {[%emt 00:00:09]}
Qf2+ {[%clk 00:02:02]} {[%emt 00:00:23]} 90. Kg5 {[%clk 00:18:51]} {[%emt
00:00:25]} Qg2+ {[%clk 00:02:22]} {[%emt 00:00:10]} 91. Kxh5 {[%clk 00:18:32]}
{[%emt 00:00:50]} Qxe4 {[%clk 00:02:31]} {[%emt 00:00:22]} 92. Kh6 {[%clk
00:18:51]} {[%emt 00:00:11]} Qe3+ {[%clk 00:02:02]} {[%emt 00:00:58]} 93. Kh7
{[%clk 00:19:08]} {[%emt 00:00:12]} Qa7+ {[%clk 00:01:40]} {[%emt 00:00:53]} 94.
Qg7 {[%clk 00:19:09]} {[%emt 00:00:29]} Qf7 {[%clk 00:01:55]} {[%emt 00:00:15]}
95. Kh6 {[%clk 00:19:12]} {[%emt 00:00:27]} Qf4+ {[%clk 00:01:37]} {[%emt
00:00:48]} 96. Qg5 {[%clk 00:19:10]} {[%emt 00:00:31]} Qf8+ {[%clk 00:01:57]}
{[%emt 00:00:10]} 97. Kg6 {[%clk 00:19:33]} {[%emt 00:00:08]} Qf7+ {[%clk
00:02:16]} {[%emt 00:00:11]} 98. Kh6 {[%clk 00:19:56]} {[%emt 00:00:07]} Qf8+
{[%clk 00:02:43]} {[%emt 00:00:03]} 99. Kh7 {[%clk 00:19:35]} {[%emt 00:00:51]}
Qf7+ {[%clk 00:03:02]} {[%emt 00:00:10]} 100. Kh8 {[%clk 00:19:58]} {[%emt
00:00:07]} Qf8 {[%clk 00:02:43]} {[%emt 00:00:48]} 101. Qg8 {[%clk 00:19:49]}
{[%emt 00:00:40]} Ke7 {[%clk 00:03:01]} {[%emt 00:00:13]} 102. h5 {[%clk
00:19:40]} {[%emt 00:00:39]} Qh6+ {[%clk 00:02:54]} {[%emt 00:00:37]} 103. Qh7+
{[%clk 00:20:07]} {[%emt 00:00:03]} Qxh7+ {[%clk 00:02:52]} {[%emt 00:00:33]}
104. Kxh7 {[%clk 00:20:33]} {[%emt 00:00:02]} Kf7 {[%clk 00:02:38]} {[%emt
00:00:44]} 105. h6 {[%clk 00:20:56]} {[%emt 00:00:07]} Kf8 {[%clk 00:02:56]}
{[%emt 00:00:13]} 106. Kg6 {[%clk 00:21:23]} {[%emt 00:00:03]} Kg8 {[%clk
00:03:23]} {[%emt 00:00:03]} 107. h7+ {[%clk 00:21:48]} {[%emt 00:00:05]} Kh8
{[%clk 00:03:51]} {[%emt 00:00:03]} 108. Kh6 {[%clk 00:22:15]} {[%emt
00:00:03]} 1/2-1/2